bitfinex/quotes_ETHUSD_20240816
["timestamp","ask_amount","ask_price","bid_price","bid_amount"]
[1723772023144,11.72561614,2565.9,2565.2,7.79653]
[1723772023365,0.24950636,2565.8,2565.3,0.6279545]
[1723772023513,0.24950636,2565.7,2565.3,0.6279545]
[1723772023712,0.24950636,2565.6,2565.3,0.6279545]
[1723772024010,7.44,2566.4,2565.5,0.81455811]
[1723772024011,3.70054614,2566.4,2565.5,0.81455811]
[1723772024229,4.1277,2566.5,2565.5,0.81455811]
[1723772024230,0.24951993,2566.3,2566.0,3.89709]
[1723772024456,0.24951993,2566.2,2566.0,3.89709]
[1723772024745,0.389628,2566.5,2565.9,4.71171811]
[1723772024913,0.24953119,2566.4,2566.0,1.90482886]
[1723772025113,0.24953119,2566.3,2566.0,0.55]
[1723772025314,0.24953119,2566.2,2566.0,0.55]
[1723772025540,0.389628,2566.5,2566.1,3.38702491]
[1723772025736,0.389628,2566.5,2566.0,1.36455811]
[1723772025737,0.24951104,2566.4,2566.2,3.38702713]
[1723772026042,4.1277,2566.7,2566.3,38.38687901]
[1723772026249,0.24950694,2566.6,2566.4,1.35480996]
[1723772026412,0.24950694,2566.5,2566.3,35.0]
[1723772026612,0.24950694,2566.4,2566.3,35.0]
[1723772027052,0.24950694,2566.4,2565.9,4.71169811]
[1723772027053,3.879,2566.3,2565.9,0.81455811]
[1723772027209,3.879,2566.3,2565.6,1.62911622]
[1723772027210,3.89712,2566.0,2565.8,0.81455811]
[1723772027414,0.24950694,2565.9,2565.4,0.81455811]
[1723772027612,0.24950694,2565.8,2565.5,3.38797452]
[1723772027913,0.24950694,2565.7,2565.6,3.38791501]
[1723772028311,0.24950694,2565.7,2565.6,1.35518981]
[1723772028553,0.24950694,2565.7,2565.6,3.38797458]
[1723772029927,0.24952674,2565.7,2565.6,3.38797458]
[1723772030240,0.24952674,2565.7,2565.6,3.38792212]
[1723772031750,0.24952674,2565.7,2565.6,4.20231632]
[1723772031927,0.24952674,2565.7,2565.6,8.10003632]
[1723772032132,0.24952674,2565.7,2565.6,20.39844056]
[1723772032334,7.44,2566.2,2565.9,3.89721]
[1723772032531,0.24950563,2566.1,2566.0,4.7566086]
[1723772032929,0.24950563,2566.1,2566.0,7.87578673]
[1723772033160,0.24950563,2566.1,2566.0,11.77289673]
[1723772033528,0.24950563,2566.1,2566.0,10.54462114]
[1723772033855,0.24950563,2566.4,2566.0,45.54462114]
[1723772034187,19.77,2566.5,2566.1,7.32563098]
[1723772034368,0.24951102,2566.4,2566.2,4.20650189]
[1723772034528,19.77,2566.5,2566.3,3.38775821]
[1723772034717,19.77,2566.5,2566.4,3.38729057]
[1723772034913,20.01950913,2566.5,2566.4,3.38729057]
[1723772035819,19.77,2566.5,2566.4,3.38729057]
[1723772036132,19.77,2566.5,2566.4,4.20549705]
[1723772036133,20.01950009,2566.5,2566.4,4.20549705]
[1723772036631,20.01950009,2566.5,2566.4,3.38675337]
[1723772036954,0.24950009,2566.5,2566.4,3.38675337]
[1723772037121,0.24950009,2566.5,2566.4,4.20549705]
[1723772037758,0.24950009,2566.5,2566.4,3.38675337]
[1723772038466,11.3359,2566.8,2566.4,4.20549705]
[1723772038651,11.3359,2566.8,2566.4,0.81874368]
[1723772038652,0.24949718,2566.7,2566.4,0.81874368]
[1723772038853,0.24949718,2566.6,2566.5,4.20551218]
[1723772039371,0.24948653,2566.6,2566.5,3.3867685]
[1723772039954,0.24948653,2566.6,2566.5,4.20551218]
[1723772040335,0.24948653,2566.6,2566.5,3.3867685]
[1723772040530,0.24948653,2566.6,2566.5,4.20544528]
[1723772040842,4.23508653,2566.6,2566.5,3.3867016]
[1723772041056,4.23508653,2566.6,2566.3,3.89663]
[1723772041057,4.23508653,2566.6,2566.3,0.81874368]
[1723772041260,0.24948653,2566.5,2566.4,1.35479825]
[1723772041576,0.24948653,2566.5,2566.4,1.35483807]
[1723772041772,3.89681,2566.2,2566.0,2.04686352]
[1723772041991,3.8972,2566.0,2565.7,0.81874368]
[1723772042167,0.75026644,2565.9,2565.8,3.3878317]
[1723772042369,4.64752644,2565.9,2565.6,0.81874368]
[1723772042582,4.14689653,2565.8,2565.7,1.3552019]
[1723772042739,3.89766,2565.7,2565.5,0.81874368]
[1723772042939,3.89766,2565.7,2565.6,1.35526713]
[1723772043138,8.1228415,2565.7,2565.6,1.35526713]
[1723772043339,8.1228415,2565.7,2565.4,0.81874368]
[1723772043534,8.1228415,2565.7,2565.3,36.22811984]
[1723772043535,0.2496815,2565.6,2565.5,4.20700096]
[1723772044039,0.2496815,2565.6,2565.5,7.32666675]
[1723772044388,0.2496815,2565.6,2565.5,7.87666675]
[1723772046765,7.87264,2566.0,2565.5,7.87666675]
[1723772046967,0.24965981,2565.9,2565.6,39.20731207]
[1723772047274,3.89658,2566.4,2565.6,39.20731207]
[1723772047275,3.70425627,2566.4,2565.8,1.22811984]
[1723772047461,7.7938,2566.2,2565.9,4.20725405]
[1723772047634,0.24970728,2566.1,2566.0,3.38787211]
[1723772048096,0.24972438,2566.1,2566.0,3.38787211]
[1723772048249,4.17472438,2566.1,2566.0,1.355105]
[1723772048446,4.17472438,2566.1,2565.9,35.0]
[1723772048647,0.24972438,2566.0,2565.9,35.0]
[1723772048848,0.24972438,2566.0,2565.9,38.3877718]
[1723772049173,0.24972438,2566.0,2565.9,3.3877718]
[1723772049377,0.24972438,2566.0,2565.8,0.81938194]
[1723772049545,7.82196,2566.1,2565.9,3.3876428]
[1723772049745,7.82196,2566.1,2566.0,1.35505712]
[1723772049959,8.07157273,2566.1,2565.8,35.81938194]
[1723772050159,0.24961273,2566.0,2565.9,3.38774775]
[1723772050656,0.24961273,2566.0,2565.9,4.20712969]
[1723772050860,0.24961273,2566.0,2565.9,3.38774775]
[1723772051043,0.24961273,2566.0,2565.9,4.20712969]
[1723772052077,0.24961273,2566.0,2565.9,4.2070811]
[1723772052439,0.24961273,2566.0,2565.9,3.38774775]
[1723772052856,4.28831273,2566.0,2565.9,3.38774775]
[1723772054268,4.28831273,2566.0,2565.8,0.81933335]
[1723772054502,0.24961273,2565.9,2565.8,0.81933335]
[1723772054805,4.0387,2566.0,2565.8,3.38754865]
[1723772055095,0.24958147,2565.9,2565.8,0.81937127]
[1723772055302,4.0387,2566.0,2565.8,4.20699778]
[1723772055499,4.0387,2566.0,2565.9,3.38762651]
[1723772055664,4.28824894,2566.0,2565.9,3.38762651]
[1723772055864,0.24954894,2566.0,2565.9,4.20699778]
[1723772057559,0.24954894,2566.0,2565.9,4.2068476]
[1723772057866,7.83654,2566.3,2565.9,4.2068476]
[1723772058069,3.89645,2566.5,2566.0,4.2068476]
[1723772058070,0.24946635,2566.2,2566.0,4.2068476]
[1723772058268,3.70049575,2566.4,2566.1,3.38747633]
[1723772058601,0.24950462,2566.3,2566.2,1.35491545]
[1723772058976,0.24950462,2566.3,2566.2,1.3549298]
[1723772059376,0.24950462,2566.3,2566.2,3.38728808]
[1723772059581,0.24950462,2566.3,2566.2,3.38726837]
[1723772059894,3.89645,2566.5,2566.2,3.38726837]
[1723772060088,9.88597209,2566.5,2566.3,1.35488941]
[1723772060291,4.14596912,2566.4,2566.1,0.81937127]
[1723772060495,0.24945912,2566.3,2566.1,0.81937127]
[1723772060700,6.43901412,2566.4,2566.2,3.38723893]
[1723772061003,6.43901412,2566.4,2566.1,35.81937127]
[1723772061213,0.24942952,2566.3,2566.2,3.38728042]
[1723772061571,0.24942952,2566.3,2566.2,3.387232]
[1723772062007,3.89645,2566.5,2566.2,3.387232]
[1723772062215,0.24944278,2566.4,2566.1,0.81937127]
[1723772062374,0.24944278,2566.3,2566.2,3.38721068]
[1723772062716,0.24944278,2566.3,2566.2,3.38723362]
[1723772063069,15.28931,2566.6,2566.2,3.38723362]
[1723772063274,3.95011068,2566.5,2566.3,1.35488821]
[1723772063523,0.24944363,2566.4,2566.1,0.81937127]
[1723772063682,0.24944363,2566.3,2566.2,36.35497229]
[1723772063874,0.24944363,2566.3,2566.2,35.0]
[1723772064070,0.24944363,2566.3,2566.2,36.35495419]
[1723772064390,0.24944363,2566.3,2565.9,0.81937127]
[1723772064391,3.89685,2566.2,2565.9,0.81937127]
[1723772064588,0.24944363,2566.1,2566.0,3.38764883]
[1723772066344,9.40624423,2566.1,2566.0,3.38764883]
[1723772066634,9.40624423,2566.1,2565.1,4.1121]
[1723772066635,3.89772,2565.6,2565.4,0.81937127]
[1723772066825,4.19284363,2565.5,2565.3,0.81937127]
[1723772066975,4.19284363,2565.5,2564.9,0.81937127]
[1723772066976,3.89848,2565.1,2564.9,0.81937127]
[1723772067181,3.89848,2565.1,2564.8,3.93930019]
[1723772067182,0.24944363,2565.0,2564.8,0.81937127]
[1723772067486,3.89863,2565.0,2564.9,1.35567952]
[1723772067690,4.1481889,2565.0,2564.9,1.35567952]
[1723772067874,4.1481889,2565.0,2564.9,1.3557017]
[1723772068075,4.1481889,2565.0,2564.9,3.38920987]
[1723772068602,4.1481889,2565.0,2564.9,1.35568606]
[1723772068910,4.1481889,2565.0,2564.9,1.35571233]
[1723772068911,4.14817443,2565.0,2564.9,1.35571233]
[1723772069429,0.24954443,2565.0,2564.9,1.35571233]
[1723772070191,0.24954443,2565.0,2564.9,3.38922219]
[1723772071702,0.24954443,2565.0,2564.9,4.20859346]
[1723772072112,0.24954443,2565.0,2564.9,8.10737346]
[1723772072315,0.24954443,2565.0,2564.9,9.99897367]
[1723772072525,0.24954443,2565.0,2564.9,3.38922219]
[1723772072824,3.9423,2565.2,2564.9,42.32983907]
[1723772073033,0.24957846,2565.1,2565.0,7.74970315]
[1723772073330,7.44,2565.4,2565.0,15.99683079]
[1723772073626,0.24957132,2565.3,2565.2,0.81959119]
[1723772073788,0.24957132,2565.3,2565.2,4.75808852]
[1723772074616,0.24954766,2565.3,2565.2,4.75808852]
[1723772074928,0.24954766,2565.3,2565.2,6.30032113]
[1723772075228,0.24954766,2565.3,2565.2,3.93849733]
[1723772075528,0.24954766,2565.3,2565.2,3.38849733]
[1723772077516,0.24954766,2565.3,2565.2,4.20814532]
[1723772077823,0.24954766,2565.3,2565.2,3.93855413]
[1723772078028,0.24954766,2565.3,2565.2,4.20814532]
[1723772078565,0.24954766,2565.3,2565.2,3.38855413]
[1723772079536,0.24954766,2565.3,2565.2,1.35547509]
[1723772079869,11.63315369,2565.4,2565.2,3.38870698]
[1723772080073,0.24963038,2565.3,2565.1,0.81959119]
[1723772080279,9.113845,2565.4,2565.2,3.38871878]
[1723772080441,0.24964937,2565.3,2565.1,0.81959119]
[1723772080769,9.113845,2565.4,2565.2,3.38869418]
[1723772080972,0.24966279,2565.3,2565.1,0.81959119]
[1723772081272,9.113845,2565.4,2565.2,3.3886714]
[1723772081477,0.24966805,2565.3,2565.1,0.81959119]
[1723772081673,7.93094,2565.4,2565.2,3.38869795]
[1723772081874,0.24968345,2565.3,2565.1,0.81959119]
[1723772082037,7.93094,2565.4,2565.2,3.38867937]
[1723772082237,0.24975506,2565.3,2565.1,0.81959119]
[1723772082447,7.93094,2565.4,2565.2,3.3887325]
[1723772082643,0.24976456,2565.3,2565.1,0.81959119]
[1723772082943,0.24976456,2565.3,2565.2,3.38867588]
[1723772083776,39.39,2565.7,2565.2,3.38867588]
[1723772083777,39.39,2565.7,2565.3,7.97378]
[1723772083941,0.24974644,2565.6,2565.4,4.20759783]
[1723772084276,0.24956792,2565.5,2565.3,7.97378]
[1723772084479,3.89727,2565.9,2565.3,7.97378]
[1723772084638,3.89727,2565.9,2565.3,4.0757]
[1723772084639,0.24955619,2565.8,2565.3,4.0757]
[1723772084843,0.24955619,2565.7,2565.3,4.0757]
[1723772085053,0.24955619,2565.6,2565.3,5.45418673]
[1723772085374,0.24954625,2565.5,2565.4,3.89802]
[1723772085560,0.24954625,2565.5,2565.4,5.88244021]
[1723772085752,0.24954625,2565.5,2565.4,7.23768111]
[1723772086149,0.24954625,2565.9,2565.4,7.23768111]
[1723772086353,0.24954625,2565.8,2565.4,4.44802]
[1723772086677,0.24954625,2565.7,2565.4,4.44802]
[1723772086896,0.24954625,2565.6,2565.4,4.44802]
[1723772087101,7.44,2566.0,2565.5,4.44786]
[1723772087301,0.24953958,2565.9,2565.5,4.44786]
[1723772087505,0.24953958,2565.9,2565.6,1.35513555]
[1723772087800,0.24953958,2565.9,2565.7,0.55]
[1723772088004,11.33713,2566.0,2565.5,0.55]
[1723772088302,0.24952511,2565.9,2565.5,0.55]
[1723772088685,4.14687511,2565.9,2565.5,0.55]
[1723772088891,3.89758,2565.7,2565.2,3.89822]
[1723772089096,0.24952511,2565.6,2565.3,1.90529697]
[1723772089404,0.24952511,2565.6,2565.3,0.55]
[1723772090204,7.84244,2565.9,2565.4,3.38815402]
[1723772090504,0.24953804,2565.8,2565.3,4.9747942]
[1723772090679,0.24953804,2565.8,2565.4,1.35526467]
[1723772090890,0.24953804,2565.8,2565.3,4.9747942]
[1723772091181,0.24962584,2565.7,2565.4,1.35526086]
[1723772091386,0.24962584,2565.6,2565.3,5.79371615]
[1723772091574,7.84244,2565.9,2565.4,4.35733277]
[1723772091779,0.24960526,2565.8,2565.6,3.8977]
[1723772092011,7.44,2566.0,2565.7,0.55]
[1723772092216,0.24960178,2565.9,2565.7,0.55]
[1723772092413,0.24960178,2565.9,2565.6,0.55]
[1723772092727,0.24960178,2565.9,2565.7,5.25267738]
[1723772093005,7.44,2566.0,2565.8,0.55]
[1723772093183,0.24957871,2565.9,2565.8,0.55]
[1723772093377,7.44,2566.0,2565.7,0.55]
[1723772093588,7.44,2566.0,2565.8,1.35502538]
[1723772093783,7.44,2566.0,2565.7,5.26646195]
[1723772093986,7.44,2566.0,2565.8,3.38745353]
[1723772094192,7.44,2566.0,2565.7,4.44754]
[1723772095814,7.44,2566.0,2565.8,3.89741]
[1723772096190,27.69834,2566.3,2565.8,3.89741]
[1723772096385,0.24959932,2566.2,2565.8,3.89741]
[1723772096584,3.89655,2566.4,2565.9,0.994741]
[1723772096909,0.24960449,2566.3,2565.9,4.44718]
[1723772097112,15.50306,2566.5,2565.9,0.55]
[1723772097283,0.2496168,2566.4,2566.0,3.8971]
[1723772097482,0.2496168,2566.4,2566.1,4.44692]
[1723772097713,3.89618,2566.7,2566.2,3.89679]
[1723772098018,0.24959058,2566.6,2566.3,0.55]
[1723772099414,47.16813,2566.8,2566.3,0.55]
[1723772099617,3.48133455,2566.7,2566.3,0.55]
[1723772099783,0.24960604,2566.6,2566.3,0.55]
[1723772099983,4.14592604,2566.6,2566.0,3.89699]
[1723772100177,0.24960604,2566.5,2566.1,0.55]
[1723772100488,6.82331658,2566.6,2566.1,0.55]
[1723772101792,2.92699658,2566.6,2566.1,4.44689]
[1723772102025,43.2722,2566.8,2566.2,3.8967]
[1723772102239,0.24980157,2566.7,2566.3,0.55]
[1723772102529,7.44,2566.8,2566.3,4.44654]
[1723772102739,7.44,2566.8,2566.3,8.50284]
[1723772102943,7.44,2566.8,2566.3,0.55]
[1723772102944,12.859433,2566.8,2566.3,0.55]
[1723772103144,0.24980781,2566.7,2566.3,0.55]
[1723772103454,7.79415,2566.1,2565.5,3.9562]
[1723772103653,3.89705,2566.1,2565.5,3.9562]
[1723772103858,3.89705,2566.1,2565.4,3.89788]
[1723772104241,3.89705,2566.1,2565.3,6.80774479]
[1723772104242,3.89702,2566.1,2565.3,3.9562]
[1723772104444,1.05237795,2566.0,2565.3,3.9562]
[1723772104647,0.802662,2566.0,2565.3,3.9562]
[1723772104821,3.89735,2565.9,2565.3,3.9562]
[1723772105028,8.02641,2566.2,2565.4,3.89802]
[1723772105224,8.02641,2566.2,2565.6,3.8977]
[1723772105967,4.1296,2566.2,2565.6,3.8977]
[1723772106167,3.89668,2566.3,2565.7,4.5062]
[1723772106332,3.89681,2566.2,2565.7,4.5062]
[1723772106537,3.89681,2566.2,2565.7,0.55]
[1723772107150,3.89668,2566.3,2565.7,0.55]
[1723772108458,4.1296,2566.4,2565.8,3.89733]
[1723772108658,11.33644,2566.5,2565.9,4.5205]
[1723772108861,0.24980061,2566.4,2565.9,4.5205]
[1723772109062,0.24980061,2566.4,2565.9,5.4457355]
[1723772109838,0.24980061,2566.4,2566.0,3.89709]
[1723772110136,0.24980061,2566.4,2565.9,5.4457355]
[1723772110137,0.24980061,2566.4,2565.6,3.89763]
[1723772110337,3.89691,2566.2,2565.7,0.55]
[1723772110534,3.89691,2566.2,2565.8,0.444763]
[1723772110835,4.043,2566.3,2565.7,4.44753]
[1723772111360,3.89675,2566.3,2565.7,0.55]
[1723772111742,0.24980701,2566.2,2565.7,0.55]
[1723772111934,3.89675,2566.3,2565.7,0.55]
[1723772112152,0.24981401,2566.2,2565.7,0.55]
[1723772113164,0.24981401,2566.2,2565.7,4.44752]
[1723772113365,11.33637,2566.5,2565.9,8.06096]
[1723772113671,0.24981822,2566.4,2566.0,0.55]
[1723772114291,0.24981822,2566.3,2566.1,3.89694]
[1723772114493,3.89621,2566.6,2566.2,0.55]
[1723772114658,0.63945044,2566.5,2566.2,0.55]
[1723772114859,4.14633944,2566.4,2565.9,8.06096]
[1723772115162,0.24982944,2566.3,2566.0,0.55]
[1723772117104,16.15658762,2566.8,2566.1,5.51855927]
[1723772117105,7.44,2566.8,2566.1,5.51855927]
[1723772117262,0.24986129,2566.7,2566.5,8.06015]
[1723772117591,7.60135693,2567.2,2566.6,4.4462]
[1723772117592,3.89535,2567.2,2566.6,4.4462]
[1723772117810,0.24988651,2567.1,2566.6,4.4462]
[1723772118103,0.24988651,2567.0,2566.6,4.4462]
[1723772118333,7.44,2567.4,2566.8,3.89586]
[1723772118480,16.07478,2567.6,2566.8,3.89586]
[1723772118481,0.24989391,2567.3,2566.9,4.6907]
[1723772118814,7.78955,2567.6,2567.0,3.89559]
[1723772118815,5.502328,2567.5,2567.0,3.89559]
[1723772118992,0.24990455,2567.4,2567.1,0.55]
[1723772119165,1.18961435,2567.4,2567.1,0.55]
[1723772119367,0.24990455,2567.3,2567.0,0.55]
[1723772119678,3.89477,2567.6,2567.0,4.44557]
[1723772119894,0.24989824,2567.5,2567.0,4.44557]
[1723772120265,0.24989824,2567.5,2567.0,4.44551]
[1723772121212,1.07382506,2567.5,2567.0,4.44551]
[1723772121400,4.71877682,2567.5,2567.0,4.44551]
[1723772121997,7.98923,2567.7,2567.0,8.34101]
[1723772122204,0.24995158,2567.6,2567.0,8.34101]
[1723772122403,0.24995158,2567.6,2567.0,4.4455]
[1723772122404,4.14466158,2567.6,2567.0,4.4455]
[1723772122700,0.24995158,2567.5,2567.0,4.4455]
[1723772123101,3.89471,2567.6,2567.0,9.5892]
[1723772123531,3.89471,2567.6,2567.0,5.6937]
[1723772123740,7.78948,2567.6,2567.0,4.4455]
[1723772124044,4.14475436,2567.5,2567.0,4.4455]
[1723772124197,3.89501,2567.4,2567.0,0.55]
[1723772124403,0.389501,2567.3,2567.0,0.55]
[1723772124715,7.68681,2567.4,2566.9,0.55]
[1723772125739,3.89524,2567.3,2566.9,0.55]
[1723772125925,3.89524,2567.3,2566.7,0.55]
[1723772126236,7.68681,2567.4,2566.7,1.405081]
[1723772126237,3.8953,2567.2,2566.7,1.405081]
[1723772126417,3.8953,2567.2,2566.7,0.55]
[1723772127031,3.8953,2567.2,2566.7,4.44604]
[1723772127250,3.8953,2567.2,2566.7,0.55]
[1723772127924,3.89519,2567.3,2566.7,4.44596]
[1723772128316,8.455546,2567.4,2566.8,3.89584]
[1723772128317,3.89506,2567.4,2566.8,3.89584]
[1723772128643,3.89487,2567.5,2566.9,0.994584]
[1723772128850,3.89487,2567.5,2566.9,0.55]
[1723772130149,3.89487,2567.5,2566.9,4.44572]
[1723772130916,3.89469,2567.6,2567.0,4.0803]
[1723772131151,3.89469,2567.6,2567.1,0.55]
[1723772131152,7.7895,2567.6,2567.1,0.55]
[1723772131448,3.89499,2567.4,2567.1,0.55]
[1723772131636,3.89499,2567.4,2566.9,0.55]
[1723772132053,3.7658,2567.3,2566.9,0.55]
[1723772132425,3.89499,2567.4,2566.9,0.55]
[1723772133316,3.7658,2567.5,2566.9,8.21596]
[1723772133518,9.328919,2567.6,2567.1,3.89541]
[1723772133519,3.89477,2567.6,2567.1,3.89541]
[1723772133754,11.33445,2567.8,2567.2,0.55]
[1723772133959,1.55829444,2567.7,2567.2,0.55]
[1723772134856,5.45284444,2567.7,2567.2,0.55]
[1723772135153,3.89455,2567.7,2567.2,0.55]
[1723772135351,7.98425,2567.7,2567.2,0.55]
[1723772137231,3.89455,2567.7,2567.2,0.55]
[1723772138055,3.89469,2567.6,2567.2,0.55]
[1723772138366,5.417604,2567.6,2567.2,0.55]
[1723772138664,15.22896,2567.8,2567.2,0.55]
[1723772138839,11.33445,2567.8,2567.3,3.7719]
[1723772139032,15.22896,2567.8,2567.3,3.7719]
[1723772139759,0.24997879,2567.7,2567.3,3.7719]
[1723772139962,0.1247944,2567.9,2567.4,0.55]
[1723772140130,4.14444201,2567.8,2567.4,0.55]
[1723772140325,0.2499819,2567.7,2567.4,0.55]
[1723772140555,0.2499819,2567.7,2567.2,0.55]
[1723772140743,3.89446,2567.8,2567.2,4.44521]
[1723772141562,7.78898,2567.8,2567.2,4.44521]
[1723772141863,0.24998552,2567.7,2567.2,4.44521]
[1723772143368,0.24998552,2567.7,2567.2,5.662955]
[1723772143570,3.89446,2567.8,2567.2,5.662955]
[1723772143571,0.24991723,2567.6,2567.2,5.662955]
[1723772143771,7.78892,2567.8,2567.2,4.44521]
[1723772144145,0.24993325,2567.7,2567.2,4.44521]
[1723772144570,0.24993325,2567.7,2567.5,3.89476]
[1723772144734,0.1247944,2567.9,2567.5,3.89476]
[1723772144735,0.1247944,2567.9,2567.7,3.8027]
[1723772145069,0.1247944,2567.9,2567.8,0.55]
[1723772145381,0.37472512,2567.9,2567.8,0.55]
[1723772145674,0.1247944,2567.9,2567.6,0.55]
[1723772145972,0.1247944,2567.9,2567.6,1.319745]
[1723772146147,0.1247944,2567.9,2567.7,35.0]
[1723772146353,0.1247944,2567.9,2567.8,0.55]
[1723772146545,0.1247944,2567.9,2567.8,2.68418347]
[1723772146745,0.1247944,2567.9,2567.8,10.68456347]
[1723772147035,0.1247944,2567.9,2567.8,6.79018347]
[1723772147259,0.3747265,2567.9,2567.8,6.79018347]
[1723772147644,0.1247944,2567.9,2567.8,6.79018347]
[1723772147835,0.1247944,2567.9,2567.8,10.68456347]
[1723772148236,0.1247944,2567.9,2567.8,6.79018347]
[1723772148675,0.1247944,2567.9,2567.8,10.68456347]
[1723772149677,0.1247944,2567.9,2567.8,45.68456347]
[1723772150173,0.00346392,2567.9,2567.8,49.57894347]
[1723772150581,0.00346392,2567.9,2567.8,53.47332347]
[1723772150582,9.618e-05,2567.9,2567.8,53.47332347]
[1723772151100,9.618e-05,2567.9,2567.8,53.98107561]
[1723772151965,9.618e-05,2567.9,2567.8,62.07830034]
[1723772152589,9.618e-05,2567.9,2567.8,61.25937839]
[1723772152956,9.618e-05,2567.9,2567.8,62.07830034]
[1723772153366,11.3966,2569.2,2568.6,8.02533]
[1723772153554,3.9566,2569.2,2568.7,5.608375]
[1723772153974,3.9566,2569.2,2568.8,35.0]
[1723772154188,3.771,2569.4,2568.9,4.44264]
[1723772154377,3.771,2569.4,2569.0,0.60685593]
[1723772154691,3.771,2569.4,2569.1,0.55]
[1723772154887,3.771,2569.4,2569.1,35.55]
[1723772155093,15.22353,2569.6,2569.1,35.55]
[1723772155251,11.33174,2569.6,2569.1,35.55]
[1723772156094,7.44,2569.6,2569.1,39.44241]
[1723772156257,4.1355,2570.0,2569.5,3.89166]
[1723772156586,4.1355,2570.0,2569.6,0.55]
[1723772156793,7.44,2570.1,2569.6,0.55]
[1723772157094,1.133076,2570.0,2569.6,0.55]
[1723772157294,3.89114,2570.0,2569.6,0.55]
[1723772157513,4.1355,2570.3,2569.1,38.89236]
[1723772157514,3.941,2570.2,2569.4,0.55]
[1723772157656,3.941,2570.2,2569.2,0.55]
[1723772157657,3.89163,2569.7,2569.2,0.55]
[1723772158317,3.941,2569.8,2569.2,0.55]
[1723772158597,3.941,2569.8,2569.2,4.44225]
[1723772158784,3.89161,2569.7,2569.2,0.55]
[1723772159158,3.89123,2569.9,2569.2,0.55]
[1723772159400,4.1181,2570.0,2569.4,3.89193]
[1723772159595,8.00917,2570.0,2569.5,0.55]
[1723772160101,8.00917,2570.0,2569.4,0.55]
[1723772160316,3.89126,2569.9,2569.4,0.55]
[1723772160607,5.421921,2570.0,2569.1,35.0]
[1723772160608,3.89165,2569.6,2569.1,35.0]
[1723772160762,3.89165,2569.7,2569.2,0.55]
[1723772160963,4.978,2570.1,2569.3,3.8798]
[1723772161310,4.978,2570.1,2569.4,0.55]
[1723772161474,3.89124,2569.9,2569.4,0.55]
[1723772161797,3.7754,2569.7,2569.1,35.0]
[1723772162102,3.7754,2569.7,2569.1,38.89238]
[1723772162598,3.89166,2569.6,2569.1,35.0]
[1723772162896,3.7754,2569.7,2568.7,3.89295]
[1723772162897,0.766706,2569.5,2568.7,3.89295]
[1723772163071,3.89207,2569.4,2568.7,3.89291]
[1723772163267,7.78413,2569.4,2568.8,35.0]
[1723772163498,3.89227,2569.2,2568.8,35.0]
[1723772163796,3.89265,2569.0,2568.4,3.89346]
[1723772164108,3.89265,2569.0,2568.3,3.89362]
[1723772164267,3.89287,2568.8,2568.5,35.0]
[1723772164899,7.44,2569.2,2568.8,3.89275]
[1723772165197,7.44,2569.2,2568.6,7.98464]
[1723772165499,3.89244,2569.1,2568.6,4.0916]
[1723772165673,3.89244,2569.1,2568.5,35.0]
[1723772165674,3.89259,2569.0,2568.5,35.0]
[1723772166075,3.93,2569.1,2568.5,35.0]
[1723772166278,3.93,2569.1,2568.5,38.89332]
[1723772166468,11.33235,2569.2,2568.5,41.9939104]
[1723772166668,3.89243,2569.1,2568.5,41.9939104]
[1723772166995,3.89257,2569.0,2568.5,38.1005904]
[1723772167188,3.89257,2569.0,2568.6,0.55]
[1723772167366,3.89295,2568.8,2568.5,35.0]
[1723772167565,3.8931,2568.7,2568.5,35.0]
[1723772167802,3.89326,2568.6,2568.0,3.89396]
[1723772167974,3.89333,2568.5,2568.0,0.84294286]
[1723772168174,3.89326,2568.6,2568.1,35.0]
[1723772168376,4.0052,2568.9,2568.1,35.0]
[1723772168563,15.3375,2569.2,2568.2,7.11426154]
[1723772168767,3.89249,2569.1,2568.5,3.89331]
[1723772168967,3.89259,2569.0,2568.5,3.89331]
[1723772169201,3.89259,2569.0,2568.6,35.0]
[1723772170501,15.3375,2569.2,2568.6,35.0]
[1723772170665,15.3375,2569.2,2568.7,0.55]
[1723772171166,7.44,2569.2,2568.7,8.49372]
[1723772171369,7.44,2569.2,2568.8,3.89283]
[1723772171570,7.44,2569.2,2568.7,4.6008]
[1723772172004,7.44,2569.2,2568.7,8.49377]
[1723772172311,7.44,2569.2,2568.8,3.89283]
[1723772172825,7.44,2569.2,2568.7,8.49381]
[1723772173121,7.44,2569.2,2568.8,3.89284]
[1723772173273,11.33228,2569.2,2568.7,0.55]
[1723772174003,3.89202,2569.4,2568.9,7.70889]
[1723772174323,3.89202,2569.4,2569.0,0.55]
[1723772175381,7.78406,2569.4,2569.0,0.55]
[1723772175716,3.89226,2569.2,2568.8,0.55]
[1723772176008,3.89226,2569.2,2568.6,35.0]
[1723772176009,3.89258,2569.0,2568.6,35.0]
[1723772178011,3.89243,2569.1,2568.6,35.0]
[1723772178209,3.89234,2569.2,2568.6,35.0]
[1723772178399,3.89234,2569.2,2568.7,0.55]
[1723772179176,3.89199,2569.4,2568.8,7.96101]
[1723772179380,0.25003809,2569.3,2568.9,0.55]
[1723772179582,0.25003809,2569.3,2568.6,39.0986]
[1723772179813,11.4343,2569.6,2568.6,38.89315]
[1723772179814,7.99357809,2569.2,2568.6,38.89315]
[1723772180011,0.25003809,2569.1,2568.7,0.55]
[1723772180212,0.25003809,2569.1,2568.7,4.44301]
[1723772180418,0.25003809,2569.1,2568.7,8.33594]
[1723772180619,0.25003809,2569.1,2568.7,4.44293]
[1723772181323,0.25003809,2569.1,2568.8,3.89276]
[1723772181487,7.74321,2569.4,2568.9,0.55]
[1723772181823,0.25003067,2569.3,2568.9,0.55]
[1723772181989,0.25003067,2569.3,2568.9,4.44271]
[1723772182184,0.25003067,2569.3,2568.9,5.276272]
[1723772182423,0.25003067,2569.3,2568.9,1.383562]
[1723772182628,0.25003067,2569.3,2568.9,0.55]
[1723772182982,0.24996474,2569.2,2568.9,0.55]